Workbook

Sheet Hárok1
A1: Návrh na úprava výdavkov RO - ZŠ s MŠ Palárikovo, rozpočtové opatrenie č. 12
A4: Rozpočtová klasifikácia
A5: Pr PP | B5: Zdr | C5: Pol | D5: Popis | E5: Plnenie 2019 | F5: Plnenie 2020 | G5: 2021 Schválený rozpočet | H5: Upravený RR po úprave č. 9 | I5: Návrh na úpravu č. 12 | J5: Upravený RR po úprave č. 12 | K5: Plnenie k 30.06.2021 | L5: % uprav. schvál.
A6: 08 Program Vzdelávanie
A7: 08 01 Podprogram Materská škola
A8: 08 01 | B8: 41 | C8: 610 | D8: Mzdy, platy, OON | E8: 168989.3 | F8: 163788.22 | G8: 192000 | H8: 192000 | I8: 0 | J8: =SUM(H8:I8) -> 192000 | K8: 71067.69 | L8: =vypocetPercent(J8,K8) -> 37.01442188
A9: 08 01 | B9: 41 | C9: 610 | D9: Mzdy, platy, AU projekt | E9: 0 | F9: 0 | G9: 0 | H9: 0 | I9: 0 | J9: =SUM(H9:I9) -> 0 | K9: 0 | L9: 0
A10: 08 01 | B10: 41 | C10: 620 | D10: Poist.a prísp.AU projekt | E10: 0 | F10: 0 | G10: 0 | H10: 0 | I10: 0 | J10: 0 | K10: 0 | L10: 0
A11: 08 01 | B11: 72 | C11: 610 | D11: Mzdy, platy, OON | E11: 0 | F11: 41220.05 | G11: 0 | H11: 0 | I11: 0 | J11: =SUM(H11:I11) -> 0 | K11: 0 | L11: 0
A12: 08 01 | B12: 1AC1 | C12: 610 | D12: Mzdy, platy, AU projekt | E12: 0 | F12: 0 | G12: 0 | H12: 225.51 | I12: 2495.14 | J12: 2720.65 | K12: 1636.9 | L12: 60.16576921
A13: 08 01 | B13: 1AC2 | C13: 610 | D13: Mzdy, platy, AU projekt | E13: 0 | F13: 0 | G13: 0 | H13: 188.47 | I13: 589 | J13: 777.47 | K13: 777.47 | L13: 100
A14: 08 01 | B14: 1AC3 | C14: 610 | D14: Mzdy, platy, AU projekt | E14: 0 | F14: 0 | G14: 0 | H14: 99.04 | I14: 373.79 | J14: 472.83 | K14: 472.83 | L14: 100
A15: 08 01 | B15: 3AC1 | C15: 610 | D15: Mzdy, platy, AU projekt | E15: 0 | F15: 750.53 | G15: 0 | H15: 2131.46 | I15: 1047.69 | J15: 3179.15 | K15: 3179.15 | L15: 100
A16: 08 01 | B16: 3AC2 | C16: 610 | D16: Mzdy, platy, AU projekt | E16: 0 | F16: 132.45 | G16: 0 | H16: 36.21 | I16: 36.21 | J16: 72.42 | K16: 72.42 | L16: 100
A17: 08 01 | B17: 3AC3 | C17: 610 | D17: Mzdy, platy, AU projekt | E17: 0 | F17: 90.86 | G17: 0 | H17: 55.09 | I17: 55.1 | J17: 110.19 | K17: 110.19 | L17: 100
A18: 08 01 | B18: 41 | C18: 620 | D18: Poistné a príspevky | E18: 60992.8 | F18: 69661.68 | G18: 70536 | H18: 70536 | I18: 0 | J18: 70536 | K18: =3127.83+3914.69+17655.26+795 -> 25492.78 | L18: 36.14151639
A19: 08 01 | B19: 1AC1 | C19: 620 | D19: Poist. a prísp.AU projekt | E19: 0 | F19: 0 | G19: 0 | H19: 78.81 | I19: 871.95 | J19: 950.76 | K19: =272.06+678.7 -> 950.76 | L19: 100 | N19: na riadku 1AC1 zvýšenie 871,96 € a zníženie 0,01 € (oprava RO č.3)
A20: 08 01 | B20: 1AC2 | C20: 620 | D20: Poist. a prísp.AU projekt | E20: 0 | F20: 0 | G20: 0 | H20: 65.87 | I20: 205.84 | J20: 271.71 | K20: =77.75+193.96 -> 271.71 | L20: 100
A21: 08 01 | B21: 1AC3 | C21: 620 | D21: Poist. a prísp.AU projekt | E21: 0 | F21: 0 | G21: 0 | H21: 34.61 | I21: 130.62 | J21: 165.23 | K21: =47.27+117.96 -> 165.23 | L21: 100
A22: 08 01 | B22: 3AC1 | C22: 620 | D22: Poist. a prísp.AU projekt | E22: 0 | F22: 262.24 | G22: 0 | H22: 366.14 | I22: 366.15 | J22: =SUM(H22:I22) -> 732.29 | K22: =209.54+522.75 -> 732.29 | L22: 100
A23: 08 01 | B23: 3AC2 | C23: 620 | D23: Poist. a prísp.AU projekt | E23: 0 | F23: 46.27 | G23: 0 | H23: 12.66 | I23: 12.66 | J23: 25.32 | K23: =7.24+18.08 -> 25.32 | L23: 100
A24: 08 01 | B24: 3AC3 | C24: 620 | D24: Poist. a prísp.AU projekt | E24: 0 | F24: 31.75 | G24: 0 | H24: 19.25 | I24: 19.26 | J24: 38.51 | K24: =11.02+27.49 -> 38.51 | L24: 100 | N24: na riadku 3AC3 zvýšenie19,25 € a zvýšenie 0,01 € (oprava RO č.3)
A25: 08 01 | B25: 41 | C25: 632 | D25: Energie | E25: 14340.18 | F25: 10738.11 | G25: 6000 | H25: 6518 | I25: 0 | J25: 6518 | K25: 4248.65 | L25: 65.18333845
A26: 08 01 | B26: 72 | C26: 632 | D26: Energie | E26: 0 | F26: 4866.44 | G26: 9000 | H26: 9701.61 | I26: 0 | J26: 9701.61 | K26: 3994.06 | L26: 41.16904308
A27: 08 01 | B27: 41 | C27: 633 | D27: Materiál | E27: 18665.14 | F27: 6018.84 | G27: 4000 | H27: 4000 | I27: 0 | J27: 4000 | K27: 575.11 | L27: 14.37775 | N27: =J8+J18+J25+J26+J27+J30+J32+J33+J35 -> 298146.11
A28: 08 01 | B28: 72 | C28: 633 | D28: Materiál z príjmov | E28: 9822 | F28: 817.56 | G28: 0 | H28: 0 | I28: 0 | J28: 0 | K28: 0 | L28: 0
A29: 08 01 | B29: 111 | C29: 633 | D29: Materiál COVID | E29: 0 | F29: 344.58 | G29: 0 | H29: 0 | I29: 0 | J29: 0 | K29: 0 | L29: 0
A30: 08 01 | B30: 111 | C30: 633 | D30: Materiál(predškoláci) | E30: 5916 | F30: 7538 | G30: 0 | H30: 2472 | I30: 2472 | J30: 4944 | K30: 1472.6 | L30: 29.78559871
A31: 08 01 | B31: 111 | C31: 634 | D31: Dopravné náklady | E31: 0 | F31: 0 | G31: 0 | H31: 0 | I31: 0 | J31: 0 | K31: 0 | L31: 0
A32: 08 01 | B32: 41 | C32: 635 | D32: Údržba | E32: 10684.65 | F32: 1999.96 | G32: 1500 | H32: 1500 | I32: 0 | J32: 1500 | K32: 795.9 | L32: 53.06
A33: 08 01 | B33: 41 | C33: 637 | D33: Služby | E33: 12067.77 | F33: 9706.1 | G33: 7946.5 | H33: 7946.5 | I33: 0 | J33: 7946.5 | K33: 3151.04 | L33: 39.65318065
A34: 08 01 | B34: 111 | C34: 637 | D34: Služby (predškoláci) | E34: 212 | F34: 0 | G34: 0 | H34: 0 | I34: 0 | J34: 0 | K34: 0 | L34: 0
A35: 08 01 | B35: 41 | C35: 642 | D35: za PN, odchodné | E35: 456.75 | F35: 3245.17 | G35: 1000 | H35: 1000 | I35: 0 | J35: 1000 | K35: 173.47 | L35: 17.347
A36: 08 01 | B36: Bežný rozpočet | E36: =SUM(E8:E35) -> 302146.59 | F36: =SUM(F8:F35) -> 321258.81 | G36: =SUM(G8:G35) -> 291982.5 | H36: =SUM(H8:H35) -> 298987.23 | I36: =SUM(I8:I35) -> 8675.41 | J36: =SUM(H36:I36) -> 307662.64 | K36: =SUM(K8:K35) -> 119404.08 | L36: =vypocetPercent(J36,K36) -> 38.81006807
A37: 08 01 | B37: 41 | C37: 713 | D37: detská preliezka - Loď | E37: 2906 | F37: 0 | G37: 0 | H37: 0 | I37: 0 | J37: 0 | K37: 0 | L37: 0
A38: 08 01 | B38: Kapitálový rozpočet | E38: =SUM(E37) -> 2906 | F38: =SUM(F37) -> 0 | G38: =SUM(G37) -> 0 | H38: 0 | I38: =SUM(I37) -> 0 | J38: 0 | K38: =SUM(K37) -> 0 | L38: 0
A39: 08 01 | B39: Spolu rozpočet | E39: =SUM(E38,E36) -> 305052.59 | F39: =SUM(F38,F36) -> 321258.81 | G39: =SUM(G38,G36) -> 291982.5 | H39: =SUM(H38,H36) -> 298987.23 | I39: =SUM(I38,I36) -> 8675.41 | J39: =SUM(H39:I39) -> 307662.64 | K39: =SUM(K38,K36) -> 119404.08 | L39: 38.81006807
A40: 08 02 Podprogram Základná škola
A41: 08 02 | B41: 111 | C41: 610 | D41: Mzdy, platy, OON | E41: 399937.57 | F41: 451347.15 | G41: 422933 | H41: 427617 | I41: 9017 | J41: =SUM(H41:I41) -> 436634 | K41: =166640.18+14512.47+2240 -> 183392.65 | L41: =vypocetPercent(J41,K41) -> 42.00145889
A42: 08 02 | B42: 41 | C42: 610 | D42: Mzdy, platy, AU projekt | E42: 0 | F42: 6019.4 | G42: 0 | H42: 0 | I42: 0 | J42: =SUM(H42:I42) -> 0 | K42: 0 | L42: 0
A43: 08 02 | B43: 1AC1 | C43: 610 | D43: Mzdy, platy, AU projekt | E43: 0 | F43: 0 | G43: 0 | H43: 445.62 | I43: 4511.34 | J43: 4956.96 | K43: 4956.96 | L43: 100
A44: 08 02 | B44: 1AC2 | C44: 610 | D44: Mzdy, platy, AU projekt | E44: 0 | F44: 0 | G44: 0 | H44: 372.43 | I44: 1088.53 | J44: 1460.96 | K44: 1460.96 | L44: 100
A45: 08 02 | B45: 1AC3 | C45: 610 | D45: Mzdy, platy, AU projekt | E45: 0 | F45: 0 | G45: 0 | H45: 195.71 | I45: 687.24 | J45: 882.95 | K45: 882.95 | L45: 100
A46: 08 02 | B46: 3AC1 | C46: 610 | D46: Mzdy, platy, AU projekt | E46: 0 | F46: 3990.2 | G46: 0 | H46: 2070.35 | I46: 2060.63 | J46: 4130.98 | K46: 4130.98 | L46: 100
A47: 08 02 | B47: 3AC2 | C47: 610 | D47: Mzdy, platy, AU projekt | E47: 0 | F47: 704.15 | G47: 0 | H47: 71.56 | I47: 71.23 | J47: 142.79 | K47: 142.79 | L47: 100
A48: 08 02 | B48: 3AC3 | C48: 610 | D48: Mzdy, platy, AU projekt | E48: 0 | F48: 483.06 | G48: 0 | H48: 108.88 | I48: 108.36 | J48: 217.24 | K48: 217.24 | L48: 100
A49: 08 02 | B49: 111 | C49: 620 | D49: Poistné a príspevky | E49: 145873.25 | F49: 154254.58 | G49: 153815 | H49: 150616 | I49: 3175 | J49: =SUM(H49:I49) -> 153791 | K49: =12459.19+5833.59+46630.89+1605 -> 66528.67 | L49: 43.2591439 | N49: =K49+K50 -> 66653.32
A50: 08 02 | B50: 131K | C50: 620 | D50: Poistné a príspevky | E50: 0 | F50: 0 | G50: 0 | H50: 124.65 | I50: 0 | J50: =SUM(H50:I50) -> 124.65 | K50: 124.65 | L50: 100
A51: 08 02 | B51: 41 | C51: 620 | D51: Poist.a prísp.AU projekt | E51: 0 | F51: 2087.7 | G51: 0 | H51: 0 | I51: 0 | J51: 0 | K51: 0 | L51: 0
A52: 08 02 | B52: 1AC1 | C52: 620 | D52: Poist. a prísp.AU projekt | E52: 0 | F52: 0 | G52: 0 | H52: 150.1 | I52: 1538.49 | J52: =SUM(H52:I52) -> 1688.59 | K52: 1688.59 | L52: 100 | N52: na riadku 1AC1 zvýšenie1538,48 € a zvýšenie 0,01 € (oprava RO č.3)
A53: 08 02 | B53: 1AC2 | C53: 620 | D53: Poist. a prísp.AU projekt | E53: 0 | F53: 0 | G53: 0 | H53: 125.46 | I53: 369.98 | J53: 495.44 | K53: 495.44 | L53: 100
A54: 08 02 | B54: 1AC3 | C54: 620 | D54: Poist. a prísp.AU projekt | E54: 0 | F54: 0 | G54: 0 | H54: 65.93 | I54: 233.77 | J54: 299.7 | K54: 299.7 | L54: 100
A55: 08 02 | B55: 3AC1 | C55: 620 | D55: Poist. a prísp.AU projekt | E55: 0 | F55: 1343.91 | G55: 0 | H55: 697.41 | I55: 694.01 | J55: 1391.42 | K55: 1391.42 | L55: 100
A56: 08 02 | B56: 3AC2 | C56: 620 | D56: Poist. a prísp.AU projekt | E56: 0 | F56: 237.15 | G56: 0 | H56: 24.11 | I56: 23.98 | J56: 48.09 | K56: 48.09 | L56: 100
A57: 08 02 | B57: 3AC3 | C57: 620 | D57: Poist. a prísp.AU projekt | E57: 0 | F57: 162.68 | G57: 0 | H57: 36.67 | I57: 36.48 | J57: 73.15 | K57: 73.15 | L57: 100 | N57: na riadku 3AC3 zvýšenie 36,49 € a zníženie 0,01 € (oprava RO č. 3)
A58: 08 02 | B58: 111 | C58: 632 | D58: Energie | E58: 20824.56 | F58: 22387.27 | G58: 16000 | H58: 18000 | I58: 0 | J58: =SUM(H58:I58) -> 18000 | K58: 10311.11 | L58: 57.28394444
A59: 08 02 | B59: 111 | C59: 633 | D59: Materiál | E59: 16289.16 | F59: 33341.35 | G59: 15000 | H59: 18245 | I59: 0 | J59: 18245 | K59: =13621.93-2000-5881.6-3071.27 -> 2669.06 | L59: 14.62899424
A60: 08 02 | B60: 111 | C60: 633 | D60: Materiál - digitalizácia | E60: 0 | F60: 0 | G60: 0 | H60: 2000 | I60: 0 | J60: 2000 | K60: 2000 | L60: 100
A61: 08 02 | B61: 111 | C61: 633 | D61: Mat.COVID(vzdel.pouk.) | E61: 0 | F61: 0 | G61: 0 | H61: 2957 | I61: 2957 | J61: 5914 | K61: =2957+2924.6 -> 5881.6 | L61: 99.45214745
A62: 08 02 | B62: 111 | C62: 633 | D62: Materiál - učebnice | E62: 0 | F62: 0 | G62: 0 | H62: 0 | I62: 6188 | J62: 6188 | K62: 3071.27 | L62: 49.63267615
A63: 08 02 | B63: 72 | C63: 633 | D63: Materiál - z vratiek | E63: 0 | F63: 0 | G63: 0 | H63: 948.12 | I63: 0 | J63: =SUM(H63:I63) -> 948.12 | K63: 0 | L63: 0
A64: 08 02 | B64: 41 | C64: 633 | D64: Mat. - učebné pomôcky | E64: 0 | F64: 5435.4 | G64: 0 | H64: 0 | I64: 0 | J64: 0 | K64: 0 | L64: 0
A65: 08 02 | B65: 72 | C65: 633 | D65: Uč.pom.z projektu NSK | E65: 2489.98 | F65: 0 | G65: 0 | H65: 0 | I65: 0 | J65: 0 | K65: 0 | L65: 0
A66: 08 02 | B66: 111 | C66: 634 | D66: Dopravné náklady | E66: 597.6 | F66: 0 | G66: 0 | H66: 0 | I66: 0 | J66: 0 | K66: 0 | L66: 0
A67: 08 02 | B67: 111 | C67: 635 | D67: Údržba | E67: 3773.34 | F67: 5557.03 | G67: 13000 | H67: 13000 | I67: 0 | J67: 13000 | K67: 3318.55 | L67: 25.52730769
A68: 08 02 | B68: 41 | C68: 635 | D68: Údržba | E68: 0 | F68: 0 | G68: 0 | H68: 2141 | I68: 0 | J68: =SUM(H68:I68) -> 2141 | K68: 0 | L68: =vypocetPercent(J68,K68) -> 0
A69: 08 02 | B69: 111 | C69: 637 | D69: Služby | E69: 27539.16 | F69: 26192.83 | G69: 20000 | H69: 20000 | I69: 0 | J69: 20000 | K69: 10680.82 | L69: 53.4041
A70: 08 02 | B70: 111 | C70: 642 | D70: Bež.tr.na nem.d.,odchodné | E70: 3193.36 | F70: 1737.79 | G70: 3947 | H70: 3947 | I70: 1340 | J70: 5287 | K70: 1974.39 | L70: 37.34424059
A71: 08 02 | B71: 1AC1 | C71: 642 | D71: Bež.tran.na nem.dávky | E71: 0 | F71: 0 | G71: 0 | H71: 0 | I71: 200.53 | J71: 200.53 | K71: 200.53 | L71: 100
A72: 08 02 | B72: 1AC2 | C72: 642 | D72: Bež.tran.na nem.dávky | E72: 0 | F72: 0 | G72: 0 | H72: 0 | I72: 35.39 | J72: 35.39 | K72: 35.39 | L72: 100
A73: 08 02 | B73: 1AC3 | C73: 642 | D73: Bež.tran.na nem.dávky | E73: 0 | F73: 0 | G73: 0 | H73: 0 | I73: 24.27 | J73: 24.27 | K73: 24.27 | L73: 100
A74: 08 02 | B74: 72 | C74: 632 | D74: Energie | E74: 4739.15 | F74: 1484.01 | G74: 2000 | H74: 2000 | I74: 0 | J74: 2000 | K74: 0 | L74: 0
A75: 08 02 | B75: 41 | C75: 635 | D75: Údržba - učebne | E75: 0 | F75: 1015 | G75: 0 | H75: 0 | I75: 0 | J75: 0 | K75: 0 | L75: 0
A76: 08 02 | B76: 41 | C76: 635 | D76: Údržba - osvetlenie tried | E76: 520 | F76: 0 | G76: 0 | H76: 0 | I76: 0 | J76: 0 | K76: 0 | L76: 0
A77: 08 02 | B77: 41 | C77: 634 | D77: Dopravné náklady | E77: 869.8 | F77: 0 | G77: 0 | H77: 0 | I77: 0 | J77: 0 | K77: 0 | L77: 0
A78: 08 02 | B78: Bežný rozpočet | E78: =SUM(E41:E77) -> 626646.93 | F78: =SUM(F41:F77) -> 717780.66 | G78: =SUM(G41:G77) -> 646695 | H78: =SUM(H41:H77) -> 665960 | I78: =SUM(I41:I77) -> 34361.23 | J78: =SUM(H78:I78) -> 700321.23 | K78: =SUM(K41:K77) -> 306001.23 | L78: 43.69441006
A79: 08 03 Podprogram Školský klub
A80: 08 03 | B80: 41 | C80: 610 | D80: Mzdy, platy, OON | E80: 38864.9 | F80: 35268.98 | G80: 31098 | H80: 31098 | I80: 0 | J80: =SUM(H80:I80) -> 31098 | K80: =14314.32+932.98 -> 15247.3 | L80: =vypocetPercent(J80,K80) -> 49.02984115
A81: 08 03 | B81: 72 | C81: 610 | D81: Mzdy, platy, OON | E81: 0 | F81: 4299.07 | G81: 0 | H81: 0 | I81: 0 | J81: =SUM(H81:I81) -> 0 | K81: 0 | L81: =vypocetPercent(J81,K81) -> 0
A82: 08 03 | B82: 41 | C82: 620 | D82: Poistné a príspevky | E82: 14285.24 | F82: 13451.79 | G82: 10574 | H82: 10574 | I82: 0 | J82: 10574 | K82: =600.72+936.48+3800.84+135 -> 5473.04 | L82: =vypocetPercent(J82,K82) -> 51.75940987
A83: 08 03 | B83: 72 | C83: 620 | D83: Poistné a príspevky | E83: 0 | F83: 0 | G83: 1291 | H83: 1291 | I83: 0 | J83: 1291 | K83: 0 | L83: =vypocetPercent(J83,K83) -> 0
A84: 08 03 | B84: 41 | C84: 632 | D84: Energie | E84: 2858 | F84: 1809.81 | G84: 0 | H84: 553.66 | I84: 0 | J84: 553.66 | K84: 0 | L84: 0
A85: 08 03 | B85: 72 | C85: 632 | D85: Energie | E85: 0 | F85: 670.93 | G85: 3500 | H85: 3500 | I85: 0 | J85: 3500 | K85: 1365.99 | L85: 39.02828571
A86: 08 03 | B86: 41 | C86: 633 | D86: Materiál | E86: 4694.84 | F86: 819.17 | G86: 0 | H86: 24.58 | I86: 0 | J86: 24.58 | K86: 16.66 | L86: 67.77868186
A87: 08 03 | B87: 72 | C87: 633 | D87: Materiál z príjmov | E87: 7295 | F87: 0 | G87: 1209 | H87: 1209 | I87: 0 | J87: 1209 | K87: 59.84 | L87: 4.949545079
A88: 08 03 | B88: 41 | C88: 635 | D88: Údržba objektov | E88: 275.48 | F88: 282.61 | G88: 0 | H88: 18 | I88: 0 | J88: 18 | K88: 0 | L88: 0
A89: 08 03 | B89: 72 | C89: 635 | D89: Údržba objektov | E89: 0 | F89: 0 | G89: 500 | H89: 594.81 | I89: 0 | J89: 594.81 | K89: 303.48 | L89: 51.02133454
A90: 08 03 | B90: 41 | C90: 637 | D90: Služby | E90: 1576.64 | F90: 1137.64 | G90: 0 | H90: 23.76 | I90: 0 | J90: 23.76 | K90: 14.4 | L90: 60.60606061
A91: 08 03 | B91: 72 | C91: 637 | D91: Služby | E91: 0 | F91: 0 | G91: 1500 | H91: 1500 | I91: 0 | J91: 1500 | K91: 414.17 | L91: 27.61133333
A92: 08 03 | B92: 41 | C92: 642 | D92: Bež.transf.na nem.d. | E92: 2160.01 | F92: 0 | G92: 0 | H92: 0 | I92: 0 | J92: 0 | K92: 0 | L92: =vypocetPercent(J92,K92) -> 0
A93: 08 03 | B93: Bežný rozpočet | E93: =SUM(E80:E92) -> 72010.11 | F93: =SUM(F80:F92) -> 57740 | G93: =SUM(G80:G92) -> 49672 | H93: =SUM(H80:H92) -> 50386.81 | I93: =SUM(I80:I92) -> 0 | J93: =SUM(H93:I93) -> 50386.81 | K93: =SUM(K80:K92) -> 22894.88 | L93: =vypocetPercent(J93,K93) -> 45.43824068
A94: 08 04 Podprogram Školská jedáleň
A95: 08 04 | B95: 41 | C95: 610 | D95: Mzdy, platy, OON | E95: 53365.62 | F95: 56056.19 | G95: 56400 | H95: 56400 | I95: 0 | J95: =SUM(H95:I95) -> 56400 | K95: =20337.88+871.26 -> 21209.14 | L95: =vypocetPercent(J95,K95) -> 37.60485816
A96: 08 04 | B96: 41 | C96: 620 | D96: Poistné a príspevky | E96: 18885.6 | F96: 18822.4 | G96: 20628 | H96: 20628 | I96: 0 | J96: =SUM(H96:I96) -> 20628 | K96: =566.63+1330.33+5297.82+300 -> 7494.78 | L96: 36.33304247
A97: 08 04 | B97: 41 | C97: 632 | D97: Energie | E97: 6217.09 | F97: 3197.42 | G97: 2000 | H97: 4116.5 | I97: 0 | J97: 4116.5 | K97: 2588.76 | L97: 62.88740435
A98: 08 04 | B98: 72 | C98: 632 | D98: Energie z príjmov | E98: 5000 | F98: 3546.29 | G98: 9400 | H98: 9485.32 | I98: 0 | J98: 9485.32 | K98: 2625.73 | L98: 27.68203919
A99: 08 04 | B99: 41 | C99: 633 | D99: Materiál | E99: 12420.65 | F99: 2640.27 | G99: 0 | H99: 155.77 | I99: 0 | J99: 155.77 | K99: 139.93 | L99: 89.83116133
A100: 08 04 | B100: 72 | C100: 633 | D100: Elektro,prístroje z príj. | E100: 0 | F100: 55.32 | G100: 3000 | H100: 3505.5 | I100: 0 | J100: 3505.5 | K100: =6877.3-5251.31 -> 1625.99 | L100: 46.38396805
A101: 08 04 | B101: 41 | C101: 635 | D101: Údržba | E101: 1417.41 | F101: 1228.24 | G101: 0 | H101: 820 | I101: 0 | J101: 820 | K101: 0 | L101: 0
A102: 08 04 | B102: 72 | C102: 635 | D102: Údržba | E102: 0 | F102: 0 | G102: 1000 | H102: 1000 | I102: 0 | J102: 1000 | K102: 220.88 | L102: 22.088
A103: 08 04 | B103: 41 | C103: 637 | D103: Služby | E103: 4292.49 | F103: 3697.27 | G103: 2400 | H103: 2400 | I103: 0 | J103: =SUM(H103:I103) -> 2400 | K103: 1257.65 | L103: =vypocetPercent(J103,K103) -> 52.40208333
A104: 08 04 | B104: 72 | C104: 637 | D104: Služby | E104: 0 | F104: 0 | G104: 600 | H104: 751.71 | I104: 0 | J104: =SUM(H104:I104) -> 751.71 | K104: 448.64 | L104: =vypocetPercent(J104,K104) -> 59.68259036
A105: 08 04 | B105: 41 | C105: 642 | D105: Bež.transf.na nem.dávky | E105: 130.2 | F105: 372.21 | G105: 0 | H105: 0 | I105: 0 | J105: 0 | K105: 0 | L105: =vypocetPercent(J105,K105) -> 0
A106: 08 04 | B106: 111 | C106: 633 | D106: Potraviny | E106: 0 | F106: 21867.6 | G106: 0 | H106: 1164 | I106: 11444.4 | J106: 12608.4 | K106: 12608.4 | L106: 100
A107: 08 04 | B107: 72 | C107: 633 | D107: Potraviny | E107: 34682.39 | F107: 15617.5 | G107: 42000 | H107: 42000 | I107: 0 | J107: 42000 | K107: 5251.31 | L107: 12.50311905
A108: 08 04 | B108: 72 | C108: 642 | D108: Transfery iným osobám | E108: 0 | F108: 0 | G108: 0 | H108: 25 | I108: 0 | J108: 25 | K108: 25 | L108: 100
A109: 08 04 | B109: Bežný rozpočet | E109: =SUM(E95:E108) -> 136411.45 | F109: =SUM(F95:F108) -> 127100.71 | G109: =SUM(G95:G108) -> 137428 | H109: =SUM(H95:H108) -> 142451.8 | I109: =SUM(I95:I108) -> 11444.4 | J109: =SUM(H109:I109) -> 153896.2 | K109: =SUM(K95:K108) -> 55496.21 | L109: 36.06080592
A110: 08 04 | B110: 41 | C110: 713 | D110: Stroje a prístroje | E110: 12538.74 | F110: 0 | G110: 0 | H110: 0 | I110: 0 | J110: 0 | K110: 0 | L110: 0
A111: 08 04 | B111: Kapitálový rozpočet | E111: =SUM(E110) -> 12538.74 | F111: 0 | G111: 0 | H111: 0 | I111: 0 | J111: 0 | K111: 0 | L111: 0
A112: 08 04 | B112: Spolu rozpočet | E112: =SUM(E111,E109) -> 148950.19 | F112: 127100.71 | G112: 137428 | H112: 142451.8 | I112: =SUM(I111,I109) -> 11444.4 | J112: =SUM(J111,J109) -> 153896.2 | K112: =SUM(K111,K109) -> 55496.21 | L112: 36.06080592
A113: Bežný rozpočet | E113: =SUM(E109,E93,E78,E36) -> 1137215.08 | F113: =SUM(F109,F93,F78,F36) -> 1223880.18 | G113: =G36+G93+G109+G78 -> 1125777.5 | H113: =H36+H93+H109+H78 -> 1157785.84 | I113: =I36+I93+I109+I78 -> 54481.04 | J113: =J39+J93+J109+J78 -> 1212266.88 | K113: =K36+K93+K109+K78 -> 503796.4 | L113: 41.5582087
A114: Kapitálový rozpočet | E114: =SUM(E111,E38) -> 15444.74 | F114: 0 | G114: 0 | H114: 0 | I114: 0 | J114: 0 | K114: 0 | L114: 0
A115: CELKOM VÝDAVKY | E115: =SUM(E113:E114) -> 1152659.82 | F115: 1223880.18 | G115: 1125777.5 | H115: 1157785.84 | I115: 54481.04 | J115: 1212266.88 | K115: 503796.4 | L115: 41.5582087
A117: Návrh na úpravu príjmov RO - ZŠ s MŠ Palárikovo, rozpočtové opatrenie č. 12
A118: Pr PP | B118: Zdr | C118: Pol | D118: Popis | E118: Plnenie 2019 | F118: Plnenie 2020 | G118: 2021 Schválený rozpočet | H118: Upravený RR po úprave č.9 | I118: Návrh na úpravu č. 12 | J118: Upravený RR po úprave č. 12 | K118: Plnenie k 30.06.2021 | L118: % uprav. Schvál
A119: 1 | B119: 72 | C119: 312 | D119: projekty NSK | E119: 2489.98 | F119: 0 | G119: 0 | H119: 0 | I119: 0 | J119: =SUM(H119+I119) -> 0 | K119: 0 | L119: =vypocetPercent(J119,K119) -> 0
B120: 72 | C120: 312 | D120: transfer z ÚPSVaR | E120: 0 | F120: 41220.05 | G120: 0 | H120: 0 | I120: 0 | J120: =SUM(H120+I120) -> 0 | K120: 0 | L120: =vypocetPercent(J120,K120) -> 0
A121: 1 | B121: 72 | C121: 223 | D121: réžia žiaci | E121: 6472.04 | F121: 3025.42 | G121: 4000 | H121: 4000 | I121: 0 | J121: =SUM(H121+I121) -> 4000 | K121: 2046 | L121: =vypocetPercent(J121,K121) -> 51.15
A122: 1 | B122: 72 | C122: 223 | D122: poplatky za stravu | E122: 35432.06 | F122: 8405.12 | G122: 42000 | H122: 42000 | I122: 0 | J122: =SUM(H122+I122) -> 42000 | K122: 8213.24 | L122: 19.55533333
A123: 1 | B123: 72 | C123: 223 | D123: réžia dospelí stravníci | E123: 11478.11 | F123: 8909.82 | G123: 10000 | H123: 10000 | I123: 0 | J123: 10000 | K123: 5166.48 | L123: 51.6648
A124: 1 | B124: 72 | C124: 223 | D124: školné ŠKD | E124: 7295 | F124: 5590 | G124: 8000 | H124: 8000 | I124: 0 | J124: 8000 | K124: 2740 | L124: 34.25
A125: 1 | B125: 72 | C125: 223 | D125: školné MŠ | E125: 9822 | F125: 6202 | G125: 9000 | H125: 9000 | I125: 0 | J125: 9000 | K125: 4144 | L125: 46.04444444
A126: 1 | B126: 72 | C126: 223 | D126: prenájom škol.priest. | E126: 2790.8 | F126: 830 | G126: 2000 | H126: 2000 | I126: 0 | J126: 2000 | K126: 0 | L126: 0
A127: 1 | B127: 72 | C127: 292 | D127: vratky | E127: 1948.35 | F127: 1001.22 | G127: 0 | H127: =1896.25+85.32 -> 1981.57 | I127: 0 | J127: 1981.57 | K127: =85.32+1896.25 -> 1981.57 | L127: 100
A128: 1 | B128: 131K | C128: 292 | D128: vratky | E128: 0 | F128: 0 | G128: 0 | H128: 124.65 | I128: 0 | J128: 124.65 | K128: 124.65 | L128: 100
A129: 3 | B129: 41 | C129: 453 | D129: použ.prostr.z min.rokov | E129: 0 | F129: 0 | G129: 0 | H129: 4230.27 | I129: 0 | J129: 4230.27 | K129: 4230.27 | L129: 100
A130: 3 | B130: 72 | C130: 453 | D130: použ.prostr.z min.rokov | E130: 0 | F130: 0 | G130: 0 | H130: 530.5 | I130: 0 | J130: =SUM(H130+I130) -> 530.5 | K130: 530.5 | L130: =vypocetPercent(J130,K130) -> 100
A131: CELKOM PRÍJMY ŠKOLA | E131: =SUM(E119:E129) -> 77728.34 | F131: =SUM(F119:F129) -> 75183.63 | G131: =SUM(G121:G127) -> 75000 | H131: =SUM(H119:H130) -> 81866.99 | I131: =SUM(I119:I130) -> 0 | J131: =SUM(H131+I131) -> 81866.99 | K131: =SUM(K119:K130) -> 29176.71 | L131: =vypocetPercent(J131,K131) -> 35.63916299

Sheet List1
A1: 08 03 | B1: 41 | C1: 610 | D1: Mzdy, platy, OON | E1: 38864.9 | F1: 35268.98 | G1: 31098 | H1: 31098 | I1: 0 | J1: =SUM(H1:I1) -> 31098 | K1: =8090.98+423.4 -> 8514.38 | L1: =vypocetPercent(J1,K1) -> 27.37918837
